bitfinex-derivatives/quotes_SOLF0:USTF0_20250705
["timestamp","ask_amount","ask_price","bid_price","bid_amount"]
[1751743535665,15.93111808,146.45,146.44,6.8268]
[1751743535966,20.63049121,146.45,146.39,46.26]
[1751743536262,27.45759121,146.44,146.41,6.8281]
[1751743536463,13.27128231,146.43,146.41,6.8281]
[1751743536663,13.27128231,146.42,146.41,6.8281]
[1751743537762,13.27128231,146.42,146.4,6.8287]
[1751743538062,13.28587473,146.41,146.39,46.26]
[1751743538266,13.28739869,146.4,146.39,46.26]
[1751743538458,13.28739869,146.4,146.39,6.829]
[1751743540768,8.58651744,146.4,146.39,6.829]
[1751743541765,8.58651744,146.4,146.38,6.8296]
[1751743541964,6.8285,146.41,146.38,6.8296]
[1751743542165,8.58172762,146.4,146.36,4.74811395]
[1751743542466,6.8282,146.42,146.36,4.74811395]
[1751743542765,8.53462874,146.41,146.36,4.74811395]
[1751743543069,8.53462874,146.4,146.39,6.8293]
[1751743546376,6.8282,146.42,146.39,6.8293]
[1751743546578,8.51119786,146.41,146.39,6.8293]
[1751743546774,6.8282,146.42,146.39,6.8293]
[1751743546975,13.15488598,146.41,146.39,6.8293]
[1751743547176,6.8282,146.42,146.39,6.8293]
[1751743547382,13.15432729,146.41,146.39,6.8293]
[1751743547579,6.8282,146.42,146.39,6.8293]
[1751743547781,13.15432729,146.41,146.39,6.8293]
[1751743548079,11.3369,146.43,146.4,6.8287]
[1751743548282,15.60784296,146.42,146.4,6.8287]
[1751743548583,4.64365099,146.41,146.4,6.8287]
[1751743551688,9.58534016,146.45,146.42,6.828]
[1751743551889,20.42814295,146.44,146.42,6.828]
[1751743552090,13.15430325,146.43,146.42,6.828]
[1751743553184,15.60869317,146.43,146.42,6.828]
[1751743553790,15.60940598,146.43,146.42,6.828]
[1751743554091,13.15501606,146.43,146.42,6.828]
[1751743556089,4.64479704,146.43,146.42,6.828]
[1751743556684,4.64453505,146.43,146.42,6.828]
[1751743556882,6.8264,146.46,146.42,6.828]
[1751743557089,20.42718183,146.45,146.43,6.8273]
[1751743557287,6.8264,146.46,146.39,46.26]
[1751743557288,25.17522352,146.44,146.39,46.26]
[1751743557488,20.42710957,146.43,146.39,46.26]
[1751743557687,13.15356231,146.42,146.4,6.8286]
[1751743557991,6.8275,146.43,146.4,6.8286]
[1751743558190,13.17324928,146.42,146.4,6.8286]
[1751743558390,6.8275,146.43,146.4,6.8286]
[1751743558596,13.17357326,146.42,146.4,6.8286]
[1751743558794,6.8275,146.43,146.4,6.8286]
[1751743558992,13.17357326,146.42,146.4,6.8286]
[1751743559187,9.58534016,146.46,146.39,46.26]
[1751743559394,4.74811395,146.44,146.39,46.26]
[1751743559592,20.45046253,146.43,146.39,46.26]
[1751743559892,13.17482861,146.42,146.4,6.8289]
[1751743560193,6.8279,146.43,146.4,6.8289]
[1751743560391,13.18768126,146.42,146.4,6.8289]
[1751743560580,6.8279,146.43,146.4,6.8289]
[1751743560782,13.18768126,146.42,146.4,6.8289]
[1751743560982,6.8279,146.43,146.4,6.8289]
[1751743561192,13.18719346,146.42,146.4,6.8289]
[1751743561390,6.8279,146.43,146.4,6.8289]
[1751743561591,13.18759166,146.42,146.4,6.8289]
[1751743561790,6.8279,146.43,146.4,6.8289]
[1751743561991,13.18759166,146.42,146.4,6.8289]
[1751743562294,6.8279,146.43,146.4,6.8289]
[1751743562492,13.1881947,146.42,146.4,6.8289]
[1751743562692,6.8279,146.43,146.4,6.8289]
[1751743562994,13.1881947,146.42,146.4,6.8289]
[1751743563196,6.8279,146.43,146.4,6.8289]
[1751743563391,13.18840392,146.42,146.4,6.8289]
[1751743563692,6.8279,146.43,146.4,6.8289]
[1751743563890,13.18840392,146.42,146.4,6.8289]
[1751743564093,6.8279,146.43,146.4,6.8289]
[1751743564287,13.18886649,146.42,146.4,6.8289]
[1751743564495,6.8279,146.43,146.4,6.8289]
[1751743564792,13.18877851,146.42,146.4,6.8289]
[1751743564993,6.8279,146.43,146.4,6.8289]
[1751743565191,13.18909709,146.42,146.4,6.8289]
[1751743565392,6.8279,146.43,146.4,6.8289]
[1751743565591,13.18909315,146.42,146.4,6.8289]
[1751743565791,6.8279,146.43,146.4,6.8289]
[1751743565992,13.17817726,146.42,146.4,6.8289]
[1751743566192,6.8279,146.43,146.4,6.8289]
[1751743566394,13.17871773,146.42,146.4,6.8289]
[1751743566695,6.8279,146.43,146.4,6.8289]
[1751743566895,13.17871773,146.42,146.4,6.8289]
[1751743567095,6.8279,146.43,146.4,6.8289]
[1751743567297,13.17904857,146.42,146.4,6.8289]
[1751743567498,6.8279,146.43,146.4,6.8289]
[1751743567697,13.17954386,146.42,146.4,6.8289]
[1751743567998,6.8279,146.43,146.4,6.8289]
[1751743568196,13.17074398,146.42,146.4,6.8289]
[1751743568397,6.8279,146.43,146.4,6.8289]
[1751743568594,13.17131803,146.42,146.4,6.8289]
[1751743568893,6.8279,146.43,146.4,6.8289]
[1751743569089,13.17131803,146.42,146.4,6.8289]
[1751743569396,4.64849555,146.41,146.4,6.8289]
[1751743569795,6.8279,146.43,146.4,6.8289]
[1751743569995,15.62947376,146.42,146.4,6.8289]
[1751743570199,4.64859046,146.41,146.4,6.8289]
[1751743570495,4.64859046,146.41,146.39,46.26]
[1751743570690,4.74811395,146.44,146.39,46.26]
[1751743570895,20.48128567,146.43,146.39,46.26]
[1751743571095,20.48128567,146.42,146.4,6.8287]
[1751743571297,13.17373884,146.41,146.4,6.8287]
[1751743573487,13.17373884,146.41,146.39,53.0892]
[1751743573692,6.828,146.42,146.39,53.0892]
[1751743573888,13.1464811,146.41,146.39,53.0892]
[1751743574090,6.828,146.42,146.4,6.8289]
[1751743574292,13.1466604,146.41,146.4,6.8289]
[1751743574690,13.1466604,146.41,146.39,53.0891]
[1751743574892,6.828,146.42,146.39,53.0891]
[1751743575099,13.13781291,146.41,146.39,53.0891]
[1751743575300,6.828,146.42,146.39,53.0891]
[1751743575502,13.13953592,146.41,146.39,53.0891]
[1751743575697,6.828,146.42,146.39,53.0891]
[1751743576001,13.14059014,146.41,146.39,53.0891]
[1751743576202,6.828,146.42,146.39,53.0891]
[1751743576403,13.14276297,146.41,146.39,53.0891]
[1751743576603,6.828,146.42,146.4,6.8289]
[1751743576806,13.14276297,146.41,146.4,6.8289]
[1751743580212,15.60083222,146.41,146.4,6.8289]
[1751743581016,13.14276297,146.41,146.4,9.86734978]
[1751743582414,4.64073608,146.41,146.4,9.86734978]
[1751743582909,12.62378994,146.45,146.4,3.03844978]
[1751743583111,10.97018556,146.44,146.41,3.03844978]
[1751743583311,10.97018556,146.43,146.41,3.03844978]
[1751743583513,10.97018556,146.42,146.41,9.86684978]
[1751743584211,20.46907238,146.42,146.41,9.86684978]
[1751743584406,10.97018556,146.42,146.41,9.86684978]
[1751743585007,2.45988866,146.42,146.41,9.86684978]
[1751743586706,9.58534016,146.46,146.44,6.8268]
[1751743586903,20.47703472,146.45,146.44,6.8268]
[1751743589617,18.00486604,146.45,146.44,6.8268]
[1751743589817,20.47684065,146.45,146.44,6.8268]
[1751743590313,11.96927497,146.45,146.44,6.8268]
[1751743590617,20.49083336,146.45,146.44,6.8268]
[1751743590918,20.51847662,146.45,146.44,6.8268]
[1751743593616,15.65426028,146.45,146.44,6.8268]
[1751743594019,20.56823511,146.45,146.44,6.8268]
[1751743594319,15.65426028,146.45,146.44,6.8268]
[1751743594714,13.18225697,146.45,146.44,9.86524978]
[1751743595217,4.66069858,146.45,146.44,9.86524978]
[1751743595820,4.71199756,146.45,146.44,9.86524978]
[1751743596016,4.71199756,146.45,146.44,6.8268]
[1751743596412,9.86414978,146.47,146.44,6.8268]
[1751743596613,15.71279466,146.46,146.44,6.8268]
[1751743596918,4.71099875,146.45,146.44,6.8268]
[1751743597516,4.71099875,146.45,146.43,6.8273]
[1751743597712,4.71029284,146.44,146.43,6.8273]
[1751743597914,12.09672052,146.44,146.41,3.03844978]
[1751743598118,4.71029284,146.43,146.41,6.8284]
[1751743598321,3.03844978,146.44,146.41,6.8284]
[1751743598520,18.76879486,146.43,146.41,6.8284]
[1751743598713,4.71095706,146.42,146.41,6.8284]
[1751743600118,6.8273,146.44,146.41,6.8284]
[1751743600318,13.24266311,146.43,146.41,6.8284]
[1751743600521,6.8273,146.44,146.41,6.8284]
[1751743600716,13.24266312,146.43,146.41,6.8284]
[1751743600919,6.8273,146.44,146.41,6.8284]
[1751743601218,13.24266312,146.43,146.41,6.8284]
[1751743601418,6.8273,146.44,146.41,6.8284]
[1751743601721,13.24244276,146.43,146.41,6.8284]
[1751743601915,6.8273,146.44,146.41,6.8284]
[1751743602116,13.24244276,146.43,146.41,6.8284]
[1751743602317,6.8273,146.44,146.41,6.8284]
[1751743602519,13.24246883,146.43,146.41,6.8284]
[1751743602716,6.8273,146.44,146.41,6.8284]
[1751743602914,13.24246883,146.43,146.41,6.8284]
[1751743603112,11.5739739,146.45,146.41,6.8284]
[1751743603317,20.61131576,146.44,146.41,6.8284]
[1751743603612,13.224296,146.43,146.41,6.8284]
[1751743603811,11.5739739,146.45,146.41,6.8284]
[1751743604016,20.63136632,146.44,146.41,6.8284]
[1751743604223,13.24434656,146.43,146.41,6.8284]
[1751743604521,6.8271,146.44,146.41,6.8284]
[1751743604724,13.24446955,146.43,146.41,6.8284]
[1751743604922,4.69998393,146.43,146.41,6.8284]
[1751743605121,11.5739739,146.45,146.41,6.8284]
[1751743605321,20.60315279,146.44,146.41,6.8284]
[1751743605521,13.24486719,146.43,146.41,6.8284]
[1751743605718,11.5739739,146.45,146.41,6.8284]
[1751743605920,20.60315279,146.44,146.41,6.8284]
[1751743606116,13.24486719,146.43,146.41,6.8284]
[1751743606320,11.5739739,146.45,146.41,6.8284]
[1751743606523,20.59263474,146.44,146.41,6.8284]
[1751743606713,13.23419568,146.43,146.41,6.8284]
[1751743606919,11.5739739,146.45,146.41,6.8284]
[1751743607118,20.59258435,146.44,146.41,6.8284]
[1751743607318,13.23428687,146.43,146.41,6.8284]
[1751743607520,11.5739739,146.45,146.41,6.8284]
[1751743607725,20.59262094,146.44,146.41,6.8284]
[1751743608025,13.23429732,146.43,146.41,6.8284]
[1751743608327,11.5739739,146.45,146.41,6.8284]
[1751743608521,20.59286013,146.44,146.41,6.8284]
[1751743608719,13.23449579,146.43,146.41,6.8284]
[1751743608918,11.5739739,146.45,146.41,6.8284]
[1751743609131,20.59286013,146.44,146.42,6.8279]
[1751743609322,13.23449579,146.43,146.42,6.8279]
[1751743610230,8.54527875,146.43,146.42,6.8279]
[1751743610526,11.5399,146.46,146.42,6.8279]
[1751743610719,27.4103882,146.45,146.42,6.8279]
[1751743610922,13.22549815,146.44,146.42,6.8279]
[1751743611121,6.8266,146.45,146.42,6.8279]
[1751743611316,13.21464359,146.44,146.42,6.8279]
[1751743611521,6.8266,146.45,146.42,6.8279]
[1751743611718,13.21467585,146.44,146.42,6.8279]
[1751743611927,6.8266,146.45,146.42,6.8279]
[1751743612126,13.21467585,146.44,146.42,6.8279]
[1751743612329,6.8266,146.45,146.42,6.8279]
[1751743612529,13.21481907,146.44,146.42,6.8279]
[1751743612730,6.8266,146.45,146.42,6.8279]
[1751743613025,13.21481907,146.44,146.43,6.8275]
[1751743617238,15.68932403,146.44,146.43,6.8275]
[1751743620042,15.68965104,146.44,146.43,6.8275]
[1751743624339,20.57543238,146.44,146.43,6.8275]
[1751743627352,15.68965104,146.44,146.43,6.8275]
[1751743627953,13.21481907,146.44,146.43,6.8275]
[1751743628151,15.69311212,146.44,146.43,6.8275]
[1751743628348,20.5934621,146.44,146.43,9.86468754]
[1751743628655,9.56596721,146.49,146.43,3.03536579]
[1751743628850,106.10234068,146.5,146.45,3.03536579]
[1751743629050,16.40462015,146.49,146.46,6.8258]
[1751743629452,6.825,146.49,146.46,6.8258]
[1751743629652,6.825,146.49,146.46,9.86116579]
[1751743630049,122.50646083,146.5,146.47,6.8255]
[1751743630250,112.64659504,146.5,146.47,6.8255]
[1751743632256,9.57962015,146.5,146.48,6.8251]
[1751743632555,12.61472049,146.51,146.48,6.8251]
[1751743632754,9.57962015,146.51,146.48,6.8251]
[1751743633355,16.40362015,146.51,146.48,6.8251]
[1751743633755,9.57962015,146.52,146.49,3.03510034]
[1751743634056,9.57962015,146.53,146.49,3.03510034]
[1751743634256,12.61472049,146.53,146.49,9.85940034]
[1751743634453,6.8236,146.52,146.49,9.85940034]
[1751743634757,6.8236,146.52,146.5,6.8242]
[1751743634956,19.43782049,146.53,146.5,6.8242]
[1751743635158,16.40272015,146.53,146.5,9.85930034]
[1751743635655,6.8231,146.53,146.5,9.85930034]
[1751743637156,19.43732049,146.54,146.51,6.8237]
[1751743637456,12.61472049,146.54,146.5,3.03510034]
[1751743637961,6.8234,146.52,146.5,9.85920034]
[1751743638262,6.8234,146.52,146.5,3.03510034]
[1751743639362,6.8231,146.53,146.5,9.85930034]
[1751743639552,9.57962015,146.55,146.52,3.03510034]
[1751743639754,9.57962015,146.55,146.53,3.03510034]
[1751743640153,9.57962015,146.55,146.52,3.03510034]
[1751743640363,6.8222,146.55,146.52,9.85810034]
[1751743640563,13.17635521,146.54,146.52,9.85810034]
[1751743640860,13.17635521,146.53,146.52,9.85810034]
[1751743641261,8.50309151,146.53,146.52,6.823]
[1751743641463,6.8222,146.55,146.52,6.823]
[1751743641662,13.19224982,146.54,146.52,9.85810034]
[1751743641857,6.8222,146.55,146.52,6.823]
[1751743642057,13.19224982,146.54,146.52,9.85810034]
[1751743642258,6.8222,146.55,146.52,9.85810034]
[1751743642460,13.18724579,146.54,146.52,6.823]
[1751743642663,6.8222,146.55,146.52,9.85810034]
[1751743642864,13.18724579,146.54,146.52,9.85810034]
[1751743643164,6.8222,146.55,146.52,9.85810034]
[1751743643365,13.18524709,146.54,146.52,9.85810034]
[1751743643660,7.725284,146.53,146.49,49.35510034]
[1751743643865,4.69018366,146.52,146.49,49.35510034]
[1751743644165,6.8236,146.52,146.49,56.17960034]
[1751743646268,9.85870034,146.52,146.49,56.17960034]
[1751743646565,3.03510034,146.53,146.5,6.8242]
[1751743646963,6.8234,146.52,146.5,6.8242]
[1751743649863,6.8234,146.52,146.5,9.85930034]
[1751743654469,61.25672049,146.56,146.51,3.03510034]
[1751743654772,20.44510745,146.55,146.52,3.03510034]
[1751743654968,13.17859387,146.54,146.52,9.85830034]
[1751743655164,6.8223,146.55,146.52,9.85830034]
[1751743655364,13.17880545,146.54,146.52,9.85830034]
[1751743655566,6.8223,146.55,146.52,9.85830034]
[1751743655871,3.03510034,146.59,146.54,3.03510034]
[1751743656065,13.18527115,146.58,146.55,3.03510034]
[1751743656266,6.8212,146.57,146.55,3.03510034]
[1751743657774,6.8212,146.57,146.54,6.822]
[1751743659377,6.8207,146.58,146.53,4.73723081]
[1751743659679,6.9134,146.6,146.53,4.73723081]
[1751743659878,20.00553916,146.59,146.56,6.8212]
[1751743660074,13.18543916,146.58,146.56,6.8212]
[1751743660274,6.8201,146.59,146.56,6.8212]
[1751743660578,13.7331,146.6,146.55,4.73723081]
[1751743660877,13.18168822,146.59,146.55,4.73723081]
[1751743661079,13.7331,146.6,146.56,6.821]
[1751743661272,13.21393281,146.59,146.56,6.821]
[1751743661474,13.7331,146.6,146.56,6.821]
[1751743661782,13.21245706,146.59,146.57,6.8209]
[1751743661976,13.7331,146.6,146.57,6.8209]
[1751743662177,13.2397041,146.59,146.57,6.8209]
[1751743662376,13.7331,146.6,146.57,6.8209]
[1751743662580,4.70607785,146.59,146.57,6.8209]
[1751743662778,13.7331,146.6,146.57,6.8209]
[1751743662974,4.70607785,146.59,146.57,6.8209]
[1751743663178,13.7331,146.6,146.57,6.8209]
[1751743663378,4.70562446,146.59,146.57,6.8209]
[1751743663579,13.7331,146.6,146.57,6.8209]
[1751743664682,6.8201,146.59,146.56,6.8212]
[1751743666282,6.8206,146.58,146.53,51.03723081]
[1751743666877,6.8206,146.58,146.55,6.8217]
[1751743669275,6.9134,146.6,146.54,6.8222]
[1751743669479,13.26985835,146.59,146.53,51.03723081]
[1751743669781,4.72905963,146.58,146.53,51.03723081]
[1751743670087,6.8208,146.58,146.55,6.8217]
[1751743673888,6.8211,146.57,146.54,6.8222]
[1751743674092,6.9134,146.6,146.53,51.03723081]
[1751743674386,25.3468491,146.59,146.53,51.03723081]
[1751743674586,13.26883405,146.58,146.53,51.03723081]
[1751743674790,20.08983405,146.57,146.53,51.03723081]
[1751743675084,6.821,146.57,146.53,51.03723081]
[1751743675289,6.821,146.57,146.54,6.8223]
[1751743677696,55.89962015,146.61,146.53,51.03723081]
[1751743677887,23.65193882,146.6,146.56,3.03141833]
[1751743678088,23.65193882,146.59,146.56,3.03141833]
[1751743678283,18.20272099,146.58,146.56,3.03141833]
[1751743678489,4.72800487,146.57,146.56,3.03141833]
[1751743678689,13.27858534,146.57,146.56,3.03141833]
[1751743679897,13.27858534,146.57,146.55,6.8216]
[1751743680097,6.8206,146.58,146.56,3.03141833]
[1751743680300,13.28074282,146.57,146.56,3.03141833]
[1751743680900,13.28074282,146.57,146.56,9.85281833]
[1751743682102,13.28074282,146.57,146.56,3.03141833]
[1751743683707,4.72963068,146.57,146.56,3.03141833]
[1751743683904,13.2835202,146.57,146.56,3.03141833]
[1751743684107,13.2835202,146.57,146.56,9.85281833]
[1751743684408,6.8201,146.59,146.56,9.85281833]
[1751743684604,13.27953294,146.58,146.57,3.03141833]
[1751743687508,13.27953294,146.58,146.56,9.85281833]
[1751743687707,4.72512037,146.57,146.56,9.85281833]
[1751743688809,4.72512037,146.57,146.56,6.8214]
[1751743689002,4.72512037,146.57,146.56,9.85281833]
[1751743689402,13.28162207,146.57,146.56,9.85281833]
[1751743690611,13.28162207,146.57,146.56,6.8214]
[1751743695509,13.28859793,146.57,146.56,6.8214]
[1751743695918,13.28871258,146.57,146.56,6.8214]
[1751743696803,13.28871258,146.57,146.56,9.85281833]
[1751743698113,18.24036884,146.57,146.56,9.85281833]
[1751743699206,20.66746314,146.57,146.56,9.85281833]
[1751743701015,23.69888147,146.57,146.51,3.03141833]
[1751743701208,9.54013861,146.55,146.52,3.03322258]
[1751743701412,9.54013861,146.55,146.49,46.3]
[1751743701413,13.28871258,146.54,146.53,3.03322258]
[1751743701603,13.28871258,146.54,146.53,9.8549758]
[1751743704412,13.29890601,146.54,146.53,9.8549758]
[1751743705815,13.29890601,146.54,146.53,6.8225]
[1751743706217,13.29890601,146.54,146.53,9.8549758]
[1751743708215,13.44418444,146.54,146.53,9.8549758]
[1751743708420,18.37491186,146.54,146.53,9.8549758]
[1751743709216,13.44418444,146.54,146.53,9.8549758]
[1751743709611,18.38721407,146.54,146.53,9.8549758]
[1751743710322,18.38692763,146.54,146.53,9.8549758]
[1751743711122,13.44418444,146.54,146.53,9.8549758]
[1751743711718,9.57486132,146.58,146.55,6.8216]
[1751743711920,20.77188313,146.57,146.55,9.8540758]
[1751743712219,13.419579,146.56,146.55,9.8540758]
[1751743713621,13.419579,146.56,146.55,9.85288675]
[1751743714722,18.36715774,146.56,146.55,9.85288675]
[1751743716223,18.37800864,146.56,146.55,9.85288675]
[1751743718126,13.4304299,146.56,146.55,9.85288675]
[1751743719828,18.39067327,146.56,146.55,9.85288675]
[1751743724929,13.4304299,146.56,146.55,9.85288675]
[1751743725224,13.44103734,146.56,146.55,9.85288675]
[1751743725427,9.57486132,146.61,146.58,6.8204]
[1751743725628,20.85087774,146.6,146.58,9.85168675]
[1751743725827,20.85087774,146.59,146.58,9.85168675]
[1751743726029,20.85087774,146.59,146.58,9.8507273]
[1751743726827,18.42884549,146.59,146.58,9.8507273]
[1751743727129,4.74134857,146.59,146.58,9.8507273]
[1751743727325,6.8185,146.63,146.6,6.8194]
[1751743727531,16.10652609,146.62,146.61,3.0303273]
[1751743728235,13.68580009,146.62,146.61,3.0303273]
[1751743728938,13.68580009,146.62,146.61,9.8494273]
[1751743729131,8.71649824,146.62,146.61,9.8494273]
[1751743729832,13.74344994,146.62,146.61,3.0303273]
[1751743730138,8.71649824,146.62,146.61,3.0303273]
[1751743730434,8.71649824,146.62,146.6,3.0303273]
[1751743730634,8.71649824,146.61,146.6,3.0303273]
[1751743731230,8.71649824,146.61,146.59,6.8197]
[1751743731436,6.819,146.62,146.59,6.8197]
[1751743731437,8.71649824,146.6,146.59,9.8500273]
[1751743732241,6.819,146.62,146.59,9.8500273]
[1751743732442,8.73898571,146.61,146.6,3.0303273]
[1751743732943,6.8184,146.63,146.6,9.8499273]
[1751743733141,8.73880469,146.62,146.6,9.8499273]
[1751743733342,6.8184,146.63,146.6,9.8499273]
[1751743733543,8.73652031,146.62,146.6,9.8499273]
[1751743733744,6.8184,146.63,146.6,9.8499273]
[1751743733947,8.73652031,146.62,146.6,9.8499273]
[1751743734145,6.8184,146.63,146.6,3.0303273]
[1751743734445,8.73652031,146.62,146.6,3.0303273]
[1751743734645,6.8184,146.63,146.6,3.0303273]
[1751743734944,8.7344576,146.62,146.6,3.0303273]
[1751743735144,6.8184,146.63,146.6,3.0303273]
[1751743735446,8.7344576,146.62,146.6,3.0303273]
[1751743735638,6.8184,146.63,146.6,3.0303273]
[1751743735835,8.73258525,146.62,146.6,3.0303273]
[1751743736040,6.8184,146.63,146.6,3.0303273]
[1751743736245,8.73258525,146.62,146.6,3.0303273]
[1751743736544,6.8184,146.63,146.6,3.0303273]
[1751743736745,8.73087974,146.62,146.6,3.0303273]
[1751743736945,9.8487273,146.63,146.6,3.0303273]
[1751743737145,8.7310606,146.62,146.6,3.0303273]
[1751743737345,9.8487273,146.63,146.6,3.0303273]
[1751743737545,8.72990237,146.62,146.6,3.0303273]
[1751743737746,9.8487273,146.63,146.6,3.0303273]
[1751743737944,8.72990237,146.62,146.6,3.0303273]
[1751743738145,6.8187,146.62,146.6,3.0303273]
[1751743738549,8.72901906,146.61,146.59,6.8199]
[1751743738743,6.8187,146.62,146.59,9.8502273]
[1751743738942,8.72901906,146.61,146.59,9.8502273]
[1751743739145,6.8187,146.62,146.59,9.8502273]
[1751743739345,13.44358181,146.61,146.59,9.8502273]
[1751743739539,6.8187,146.62,146.59,9.8502273]
[1751743739846,4.71456273,146.61,146.6,6.8196]
[1751743740045,6.8187,146.62,146.6,6.8196]
[1751743742645,8.72606911,146.61,146.6,6.8196]
[1751743743948,6.8187,146.62,146.6,6.8196]
[1751743745047,9.8488273,146.63,146.6,6.8196]
[1751743745248,13.43510768,146.62,146.6,6.8196]
[1751743745446,9.8488273,146.63,146.6,6.8196]
[1751743745648,13.4343461,146.62,146.6,6.8196]
[1751743745848,6.8185,146.63,146.6,6.8196]
[1751743746048,13.4343461,146.62,146.6,6.8196]
[1751743746256,9.8488273,146.63,146.6,6.8196]
[1751743746448,13.43581552,146.62,146.6,6.8196]
[1751743746647,9.8488273,146.63,146.6,6.8196]
[1751743746850,13.42666053,146.62,146.6,6.8196]
[1751743747046,9.8488273,146.63,146.6,6.8196]
[1751743747242,13.42676639,146.62,146.6,6.8196]
[1751743747448,9.8488273,146.63,146.6,6.8196]
[1751743747649,13.42694944,146.62,146.6,6.8196]
[1751743747848,9.8488273,146.63,146.6,6.8196]
[1751743748050,13.42694944,146.62,146.6,6.8196]
[1751743748349,9.8488273,146.63,146.6,6.8196]
[1751743748555,13.42744044,146.62,146.6,6.8196]
[1751743748848,9.8488273,146.63,146.6,6.8196]
[1751743749044,13.42744044,146.62,146.6,6.8196]
[1751743749243,9.8488273,146.63,146.6,6.8196]
[1751743749547,13.42803722,146.62,146.6,6.8196]
[1751743749747,9.8488273,146.63,146.6,6.8196]
[1751743750052,13.42813754,146.62,146.6,6.8196]
[1751743750252,9.8488273,146.63,146.6,6.8196]
[1751743750451,13.42904625,146.62,146.61,6.8191]
[1751743750644,9.57486132,146.66,146.61,3.0303273]
[1751743750845,4.71036155,146.65,146.63,3.0303273]
[1751743751052,9.57486132,146.66,146.64,9.8477273]
[1751743751250,4.71008351,146.65,146.64,9.8477273]
[1751743751755,7.168,146.67,146.64,9.8477273]
[1751743752054,4.69859105,146.66,146.64,9.8477273]
[1751743752253,16.39076132,146.68,146.65,6.8172]
[1751743752450,4.69758216,146.67,146.65,9.8475273]
[1751743752651,6.8159,146.68,146.65,9.8475273]
[1751743752851,4.69728851,146.67,146.65,9.8475273]
[1751743753053,6.8159,146.68,146.65,9.8475273]
[1751743754154,4.6968576,146.67,146.65,9.8475273]
[1751743754452,6.8159,146.68,146.65,9.8475273]
[1751743755863,4.73854504,146.67,146.65,9.8475273]
[1751743756162,6.8159,146.68,146.65,9.8475273]
[1751743756356,4.73939418,146.67,146.65,9.8475273]
[1751743756557,9.8459273,146.69,146.66,6.8167]
[1751743756759,4.73837805,146.68,146.66,6.8167]
[1751743756960,4.73837805,146.67,146.66,6.8167]
[1751743757461,9.8459273,146.69,146.66,6.8167]
[1751743757656,4.7377166,146.68,146.66,6.8167]
[1751743757858,9.8459273,146.69,146.66,6.8167]
[1751743758056,4.7377166,146.68,146.66,6.8167]
[1751743758253,9.8459273,146.69,146.66,6.8167]
[1751743758457,4.73681546,146.68,146.66,6.8167]
[1751743758657,9.8459273,146.69,146.66,6.8167]
[1751743759256,11.55288298,146.68,146.66,6.8167]
[1751743759456,6.8159,146.68,146.65,9.8474273]
[1751743760663,9.8459273,146.69,146.66,6.8167]
[1751743760863,4.73637557,146.68,146.65,3.0303273]
[1751743761070,3.0303273,146.69,146.65,3.0303273]
[1751743761256,4.73681798,146.68,146.65,3.0303273]
[1751743761463,3.0303273,146.69,146.65,3.0303273]
[1751743761666,4.73636509,146.68,146.65,3.0303273]
[1751743761873,3.0303273,146.69,146.65,3.0303273]
[1751743762067,4.73636509,146.68,146.65,3.0303273]
[1751743762365,3.0303273,146.69,146.65,3.0303273]
[1751743762561,20.24148839,146.68,146.65,9.8474273]
[1751743762764,6.8161,146.68,146.65,9.8474273]
[1751743763267,8.69004896,146.67,146.65,9.8474273]
[1751743763464,6.8161,146.68,146.65,9.8474273]
[1751743763663,8.68944498,146.67,146.65,9.8474273]
[1751743763968,6.8161,146.68,146.65,9.8474273]
[1751743764160,8.68944498,146.67,146.65,9.8474273]
[1751743764365,6.8161,146.68,146.65,9.8474273]
[1751743764662,8.69028861,146.67,146.65,9.8474273]
[1751743764859,6.8161,146.68,146.65,9.8474273]
[1751743765060,8.69028861,146.67,146.65,9.8474273]
[1751743765263,6.8161,146.68,146.65,9.8474273]
[1751743765568,20.26765654,146.67,146.65,9.8474273]
[1751743765865,6.8163,146.67,146.65,9.8474273]
[1751743767471,6.8161,146.68,146.65,9.8474273]
[1751743767670,13.44512194,146.67,146.65,9.8474273]
[1751743767869,3.0303273,146.67,146.64,46.36]
[1751743768165,3.0303273,146.65,146.61,3.0303273]
[1751743768577,9.8480273,146.65,146.62,6.8183]
[1751743768772,9.8480273,146.65,146.61,3.0303273]
[1751743768970,3.0303273,146.65,146.61,3.0303273]
[1751743769271,9.57486132,146.68,146.62,3.0303273]